Cogmind - Beta 17 @@@ ROGUE MODE // 2026.07.20 @ 17:26:10 Player: obl-vn Result: Destroyed by Triborg with Siege Cannon Performance ------------- Evolutions (1) 500 Regions Visited (5) 1000 Robots Destroyed (99) 495 Value Destroyed (2542) 2542 Prototype IDs (10) 200 Alien Tech Used (0) 0 Bonus (9389) 9389 TOTAL SCORE: 14126 Bonus ------- High Alert Combat Kills 115 Follower Combat Kills 1089 Prayed to X0-1V1 5000 Major X0-1V1 Interference 2900 Registered with UFD 300 Friendly Fire -15 Cogmind --------- Core Integrity 0/400 Matter 94/300 Energy 82/100 System Corruption 0% Temperature Cool (0) Movement Core (50) Location -9/Scraptown Parts ------- > --- POWER (1) -------- (None) > --- PROPULSION (4) --- (None) > --- UTILITY (3) ------ Experimental Sensor Array > --- WEAPON (2) ------- (None) > --- INVENTORY (5) ---- Light Treads Light Treads Light Treads Autogun Rocket Launcher Peak State ------------ > --- POWER ------------ Cooled Ion Engine > --- PROPULSION ------- Light Treads Light Treads Light Treads Light Treads > --- UTILITY ---------- High-capacity Storage Unit Medium Armor Plating X0-1V1's Piety Tracker > --- WEAPON ----------- Rocket Launcher CPS Tube > --- INVENTORY -------- Cooled Ion Engine Light Treads Light Treads Light Treads Light Treads Light Treads Improved Medium Treads High-capacity Matter Pod Experimental Sensor Array Medium Armor Plating Medium Armor Plating Medium Armor Plating Autogun Autogun Autogun Autogun Autogun Rocket Launcher Rocket Launcher Rocket Launcher [Rating: 32] Favorites ----------- Power Ion Engine Engine Ion Engine Propulsion Light Treads Treads Light Treads Wheel Armored Wheel Utility High-capacity Storage Unit Device X0-1V1's Piety Tracker Storage High-capacity Storage Unit Processor Improved Targeting Computer Protection Medium Armor Plating Weapon Improved Light Cannon Ballistic Gun Autogun Ballistic Cannon Improved Light Cannon Launcher Rocket Launcher Special Weapon CPS Tube Impact Weapon Flail Build | -11 -10 -9 -9 -9 -9 ------- Run | Yrd Mat Mat Sto Rec Scr Slots Evolved 2 | . . 2 . . . Power . | . . . . . . Propulsion 1 | . . 1 . . . Utility 1 | . . 1 . . . Weapon . | . . . . . . Parts Attached 51 | 4 11 13 10 4 9 Power 5 | . 1 3 1 . . Engine 5 | . 1 3 1 . . Core . | . . . . . . Reactor . | . . . . . . Propulsion 20 | 2 1 5 7 4 1 Treads 18 | 2 1 3 7 4 1 Leg . | . . . . . . Wheel 2 | . . 2 . . . Hover . | . . . . . . Flight . | . . . . . . Utility 9 | . 3 1 1 . 4 Device 2 | . . 1 . . 1 Storage 2 | . 2 . . . . Processor 1 | . 1 . . . . Hackware . | . . . . . . Protection 4 | . . . 1 . 3 Artifact . | . . . . . . Weapon 17 | 2 6 4 1 . 4 Energy Gun . | . . . . . . Energy Cannon . | . . . . . . Ballistic Gun 7 | 2 1 3 1 . . Ballistic Cannon 3 | . 3 . . . . Launcher 5 | . 1 1 . . 3 Special Weapon 1 | . . . . . 1 Impact Weapon 1 | . 1 . . . . Slashing Weapon . | . . . . . . Piercing Weapon . | . . . . . . Special Melee Weapon . | . . . . . . Unidentified Prototypes 1 | . . 1 . . . Corrupted Parts 1 | . . . . . 1 System Corruption 2 | . . . . . 2 Parts Lost 10 | . 2 1 1 . 6 Power . | . . . . . . Propulsion 3 | . 1 1 1 . . Utility 3 | . . . . . 3 Weapon 4 | . 1 . . . 3 Highest Loss Streak 4 | . 1 1 1 . 4 To Critical Strikes . | . . . . . . Average Backups 18 | 2 16 19 19 20 19 Power . | . . . . 1 1 Propulsion 1 | . . 1 4 4 4 Utility 6 | . 7 9 6 5 5 Weapon 9 | 1 9 8 8 9 9 Tool/Special . | . . . . . . Unused Backups 22 | . 1 4 4 2 11 Power 1 | . . . . . 1 Propulsion 5 | . . . 1 1 3 Utility 6 | . . 2 1 1 2 Weapon 10 | . 1 2 2 . 5 Tool/Special . | . . . . . . Average Slot Usage (%) 93 | . 91 95 99 98 93 Engine 11 | . 12 10 10 10 10 Treads 29 | . 22 17 39 40 40 Wheel 1 | . . 16 . . . Device 4 | . . 10 10 10 9 Storage 11 | . 13 10 10 10 10 Processor 8 | . 13 10 2 . . Protection 3 | . . . 7 10 10 Ballistic Gun 5 | . . 10 18 17 . Ballistic Cannon 12 | . 24 9 . . . Launcher 1 | . . . . . 6 Impact Weapon 2 | . 2 . . 1 6 Peak Build Rating 32 | 4 14 30 30 30 32 Average Rating 20 | 2 11 28 29 29 28 On Entrance 17 | . 4 14 29 30 28 Avg Prop Armor Cover (%) 16 | 26 26 14 . . . Naked Turns . | . . . . . . Heaviest Build 70 | 3 53 54 62 62 70 Greatest Support 80 | 3 40 80 80 80 80 Greatest Overweight (x) 4 | . 2 4 1 . . Average Overweight (x) . | . 1 1 . . . Largest Inventory Capacity 20 | 5 20 20 20 20 20 Average Capacity 19 | 5 18 20 20 20 19 Most Carried 20 | 5 20 20 20 20 20 Average Carried 18 | 2 16 19 19 20 19 Final Capacity 20 | 5 20 20 20 20 5 Final Carried 20 | 2 20 20 20 20 5 Class Distribution -------------------- 62% | Mutant 33% | Scavenger-Mutant 3% | Commander-Mutant Dominant Class ---------------- Mutant | -10/Materials Mutant | -9/Materials Scavenger-Mutant | -9/Storage Scavenger-Mutant | -9/Recycling Scavenger-Mutant | -9/Scraptown Resources | -11 -10 -9 -9 -9 -9 ----------- Run | Yrd Mat Mat Sto Rec Scr Matter Collected 2643 | 240 669 528 837 135 234 Remotely . | . . . . . . Salvage Created 3011 | . 639 896 820 129 527 Parts 202 | . 39 72 54 14 23 Haulers Intercepted 7 | . 2 3 2 . . Recyclers Shooed 3 | . 2 . 1 . . Parts Field Recycled . | . . . . . . Retrieved Matter . | . . . . . . Parts Self-Destructed . | . . . . . . Prevented . | . . . . . . Parts Restored . | . . . . . . Kills | -11 -10 -9 -9 -9 -9 ------- Run | Yrd Mat Mat Sto Rec Scr Combat Hostiles Destroyed 75 | . 19 25 20 2 9 Guns 35 | . 3 12 16 2 2 Cannons 22 | . 14 8 . . . AOE 18 | . 2 5 4 . 7 Classes Destroyed 14 | . 7 2 . 1 4 Worker 5 | . 1 2 2 . . Builder 1 | . . . . 1 . Hauler 7 | . 2 3 2 . . Recycler 3 | . 3 . . . . Operator 2 | . 1 1 . . . Watcher 3 | . 1 2 . . . Swarmer 24 | . 9 8 7 . . Grunt 27 | . 10 11 6 . . Duelist 1 | . . 1 . . . Sentry 14 | . . 5 7 2 . Bolteater 1 | . . . . . 1 Scrapper 6 | . . . . . 6 Elite 2 | . . . . . 2 Zionite 3 | . . . . . 3 Best Kill Streak 7 | . 4 7 5 1 6 Combat Bots Only 6 | . 4 6 4 1 5 Max Kills in Single Turn 3 | . 2 2 3 1 2 Gunslinging 1 | . 1 1 . . . Exploded 3 | . 2 2 3 . 1 Melee . | . . . . . . Uniques/NPCs Destroyed . | . . . . . . Combat | -11 -10 -9 -9 -9 -9 -------- Run | Yrd Mat Mat Sto Rec Scr Hostile Shots Fired 310 | . 110 82 64 2 52 Missed 73 | . 19 26 10 1 17 Hits 237 | . 91 56 54 1 35 Melee 5 | . . 5 . . . Projectile 232 | . 91 51 54 1 35 Critical Strikes 12 | . 1 . 3 . 8 Damage Taken 3583 | . 897 784 791 14 1097 Core 522 | . 102 135 112 . 173 Absorbed by Shields . | . . . . . . Regen/Repaired (Parts) 368 | . 238 130 . . . Core Remaining (%) 79 | 100 59 . . . . Volleys Fired 203 | . 67 61 49 6 20 Largest 2 | . 2 2 2 2 2 Hottest 66 | . 66 66 46 46 66 Shots Fired 383 | . 123 116 97 13 34 Gun 210 | . 23 72 95 13 7 Cannon 138 | . 99 39 . . . Launcher 34 | . 1 5 2 . 26 Special 1 | . . . . . 1 Kinetic 348 | . 122 111 95 13 7 Thermal . | . . . . . . Explosive 34 | . 1 5 2 . 26 Electromagnetic . | . . . . . . Robot Hit Streak 22 | . 9 12 22 11 13 Robot Miss Streak 5 | . 5 2 3 1 2 Penetration Max . | . . . . . . Secondary Targets 6 | . 1 5 . . . Max Gunslinging Chain 1 | . 1 1 . . . Shots Hit Robots 258 | . 70 85 72 11 20 Core Hits 165 | . 28 43 37 6 51 Critical Kills . | . . . . . . Critical Parts Destroyed 3 | . 1 . 1 . 1 Critical Strikes 5 | . 3 . 1 . 1 Destroy 2 | . . . 1 . 1 Blast 2 | . 2 . . . . Smash 1 | . 1 . . . . Melee Attacks 18 | . 12 . 6 . . Impact 18 | . 12 . 6 . . Slashing . | . . . . . . Piercing . | . . . . . . Sneak Attacks 3 | . 2 . 1 . . Combat Hostiles . | . . . . . . Follow-up Attacks . | . . . . . . Damage Inflicted 6773 | . 1641 1840 1346 174 1772 Guns 2337 | . 180 829 1061 174 93 Cannons 1823 | . 1214 609 . . . Explosions 2407 | . 95 402 231 . 1679 Melee 196 | . 142 . 54 . . Ramming 10 | . 10 . . . . Kinetic 4160 | . 1394 1438 1061 174 93 Thermal . | . . . . . . Explosive 2407 | . 95 402 231 . 1679 Electromagnetic . | . . . . . . Impact 196 | . 142 . 54 . . Slashing . | . . . . . . Piercing . | . . . . . . Highest Corruption 3 | . . . 3 3 2 Average Corruption 2 | . . . 1 3 2 Corruption Purged . | . . . . . . Corruption Blocked . | . . . . . . Effects 14 | . . . 5 9 . Message Errors 2 | . . . . 2 . Matter Fused 3 | . . . 1 2 . Heat Flow Errors 4 | . . . 1 3 . Energy Discharges 2 | . . . 2 . . Data Loss (minor) 1 | . . . 1 . . Misfires 1 | . . . . 1 . Alerts 1 | . . . . 1 . Overload Shots . | . . . . . . Overflow Damage 166 | . 122 29 . . 15 Projectiles 36 | . 17 19 . . . Explosions 28 | . 3 10 . . 15 Melee 102 | . 102 . . . . Knockbacks 20 | . 19 1 . . . Impact . | . . . . . . Kinetic 18 | . 17 1 . . . Secondary 2 | . 2 . . . . Self-Inflicted Damage 239 | . 31 60 . . 148 Shots 8 | . 1 2 . . 5 Rammed 3 | . 2 . 1 . . Targets Rammed 3 | . 2 . 1 . . Kicked . | . . . . . . Crushed . | . . . . . . Highest Temperature 264 | . 33 28 241 264 90 Average Temperature 24 | . 9 8 24 74 19 Received Heat Transfer 904 | . 210 189 279 9 217 Siege Activations . | . . . . . . Martial Activations . | . . . . . . Shielding Activations . | . . . . . . Robots Disrupted . | . . . . . . Combat Hostiles . | . . . . . . Robots Corrupted 1 | . 1 . . . . Combat Hostiles . | . . . . . . Parts Fried 1 | . 1 . . . . Impact Corruptions 2 | . 2 . . . . Robots Melted . | . . . . . . Combat Hostiles . | . . . . . . Parts Melted 1 | . . . . . 1 Heat Transferred . | . . . . . . Parts Sabotaged . | . . . . . . Parts Stolen . | . . . . . . Parts Stripped . | . . . . . . Power Chain Reactions . | . . . . . . Alert | -11 -10 -9 -9 -9 -9 ------- Run | Yrd Mat Mat Sto Rec Scr Maximum Alert Level 2 | . . 2 2 . . Low Security (%) 73 | 100 100 16 5 100 . Level 1 15 | . . 53 51 . . Level 2 10 | . . 29 43 . . Level 3 . | . . . . . . Level 4 . | . . . . . . Level 5 . | . . . . . . High Security . | . . . . . . Max Security . | . . . . . . Peak Influence 532 | . 123 470 532 197 . Initial 190 | . . . 190 183 . Average 134 | . 33 304 386 115 . Influence Increases 2280 | . 606 914 682 78 . Destroy 0b10 Robot/C 1360 | . 380 500 420 60 . Destroy 0b10 Robot/NC 110 | . 40 40 25 5 . Destroy Leader 332 | . 96 110 126 . . Allied During Kill 23 | . . . 10 13 . Successful Hack 29 | . 5 18 6 . . Disable Machine 105 | . 30 30 45 . . Destroy Structure 90 | . 25 45 20 . . Lose Combat Pursuer 105 | . 30 45 30 . . Miscellaneous 126 | . . 126 . . . Influence Decreases 2280 | . 606 462 664 525 23 Entered New Map 572 | . . . 262 287 23 Time Decay 1518 | . 586 302 392 238 . Lost Part 40 | . 20 10 10 . . Purge Threat 150 | . . 150 . . . Squads Dispatched 13 | . 4 4 4 1 . Investigation 5 | . 2 2 1 . . Extermination . | . . . . . . Reinforcement 6 | . 2 2 2 . . Assault 1 | . . . . 1 . Garrison 1 | . . . 1 . . Intercept . | . . . . . . Searches Triggered . | . . . . . . Construction Impeded . | . . . . . . Haulers Reinforced . | . . . . . . Active Scanning Responses . | . . . . . . Cargo Convoy Interrupts . | . . . . . . Stealth | -11 -10 -9 -9 -9 -9 --------- Run | Yrd Mat Mat Sto Rec Scr Distress Signals 11 | . 3 6 2 . . Communications Jammed . | . . . . . . Distress Signals . | . . . . . . Times Spotted 142 | . 40 39 26 3 34 Peak Tracking Total 13 | . 4 5 6 1 13 Tactical Retreats 7 | . 2 2 1 . 2 Traps | -11 -10 -9 -9 -9 -9 ------- Run | Yrd Mat Mat Sto Rec Scr Traps Triggered 8 | . 2 2 4 . . Indirectly . | . . . . . . Trap Hack Attempts . | . . . . . . Triggered . | . . . . . . Disarmed . | . . . . . . Reprogrammed . | . . . . . . Reused 1 | . . . . . 1 Traps Extracted . | . . . . . . Installed 1 | . . . . . 1 Triggered . | . . . . . . Most Traps Carried 1 | . . . . . 1 Machines | -11 -10 -9 -9 -9 -9 ---------- Run | Yrd Mat Mat Sto Rec Scr Machines Disabled 16 | . 2 2 3 . 9 Max in Single Turn 1 | . 1 1 1 . . Machines Repaired . | . . . . . . Machines Dismantled . | . . . . . . Machines Sabotaged . | . . . . . . Overloaded Fab Kills . | . . . . . . Hacking | -11 -10 -9 -9 -9 -9 --------- Run | Yrd Mat Mat Sto Rec Scr Machines Accessed 21 | . 6 6 8 1 . Terminals 17 | . 5 4 7 1 . Fabricators . | . . . . . . Repair Stations 2 | . 1 1 . . . Recycling Units . | . . . . . . Scanalyzers 1 | . . 1 . . . Garrison Access 1 | . . . 1 . . Total Hacks 48 | . 14 19 14 1 . Successful 21 | . 7 10 3 1 . Failed 27 | . 7 9 11 . . Catastrophic 5 | . 2 2 1 . . Database Lockouts . | . . . . . . Manual 14 | . 1 10 3 . . Terminals 37 | . 9 14 13 1 . Fabricators . | . . . . . . Repair Stations 7 | . 5 2 . . . Recycling Units . | . . . . . . Scanalyzers 3 | . . 3 . . . Garrison Access 1 | . . . 1 . . Terminal Hacks 10 | . 3 3 3 1 . Prototype ID Bank 1 | . 1 . . . . Open Door 3 | . . . 3 . . Branch Access Points 1 | . . 1 . . . Unreport Threat 1 | . . 1 . . . Locate Traps 1 | . 1 . . . . Zone Layout 3 | . 1 1 . 1 . Fabricator Hacks . | . . . . . . Repair Station Hacks 6 | . 4 2 . . . Scan Component 3 | . 2 1 . . . Repair 3 | . 2 1 . . . Recycling Unit Hacks . | . . . . . . Scanalyzer 2 | . . 2 . . . Retrieve Study 2 | . . 2 . . . Garrison Access Hacks . | . . . . . . Unauthorized Hacks 3 | . . 3 . . . Terminals 3 | . . 3 . . . Assimilate 1 | . . 1 . . . Botnet 2 | . . 2 . . . Fabricators . | . . . . . . Repair Stations . | . . . . . . Recycling Units . | . . . . . . Scanalyzers . | . . . . . . Garrison Access . | . . . . . . Data Cores Recovered . | . . . . . . Used . | . . . . . . Hacking Detections 19 | . 5 6 8 . . Full Trace Events . | . . . . . . Feedback Events . | . . . . . . Feedback Blocked . | . . . . . . Robot Schematics Acquired . | . . . . . . Robots Built . | . . . . . . Authchips . | . . . . . . Time . | . . . . . . Total Robot Build Rating . | . . . . . . Part Schematics Acquired . | . . . . . . Parts Built . | . . . . . . Authchips . | . . . . . . Time . | . . . . . . Total Part Build Rating . | . . . . . . Part Studies Acquired 2 | . . 2 . . . Parts Repaired 3 | . 2 1 . . . Time 84 | . 58 26 . . . Parts Recycled . | . . . . . . Recycled Matter . | . . . . . . Retrieved Matter . | . . . . . . Retrieved Components . | . . . . . . Parts Scanalyzed . | . . . . . . Part Schematics Acquired . | . . . . . . Parts Damaged . | . . . . . . Bothacking | -11 -10 -9 -9 -9 -9 ------------ Run | Yrd Mat Mat Sto Rec Scr Used RIF Installer . | . . . . . . Robots Hacked . | . . . . . . Non-combat . | . . . . . . Combat . | . . . . . . Robot Hacks Applied . | . . . . . . Relay Couplers Released . | . . . . . . Fabnet Peak Effective % . | . . . . . . Robots Rewired . | . . . . . . Allies Hacked . | . . . . . . Hacks Repelled . | . . . . . . Allies | -11 -10 -9 -9 -9 -9 -------- Run | Yrd Mat Mat Sto Rec Scr Total Allies 11 | . . . 10 . 1 Largest Group 10 | . . . 10 4 4 Highest-Rated Group 462 | . . . 88 40 462 Highest-Rated Ally 446 | . . . 16 16 446 Total Orders 6 | . . . 2 . 4 STAY 5 | . . . 1 . 4 FOLLOW 1 | . . . 1 . . Ally Attacks 108 | . . . 10 5 93 Total Damage 4487 | . . . 107 31 4349 Kills 35 | . . . 2 1 32 Allies Corrupted . | . . . . . . Allies Melted . | . . . . . . X0-1V1 Amusement Gains 65 | . 19 10 10 . 26 Good Acts 1 | . . 1 . . . Bad Acts 18 | . . 10 7 1 . Intel | -11 -10 -9 -9 -9 -9 ------- Run | Yrd Mat Mat Sto Rec Scr Active Infowar (turns) 1 | . . . . . 1 Sensors 1 | . . . . . 1 Robot Analysis Total . | . . . . . . Derelict Logs Recovered . | . . . . . . Drone Launches . | . . . . . . Drone Recoveries . | . . . . . . Exploration | -11 -10 -9 -9 -9 -9 ------------- Run | Yrd Mat Mat Sto Rec Scr Turns Passed 7254 | 32 3508 778 925 506 1505 Spaces Moved 3103 | 43 1215 351 365 289 840 Core 88 | 43 44 . . . 1 Treads 2677 | . 1171 13 365 289 839 Legs . | . . . . . . Wheels 338 | . . 338 . . . Hover . | . . . . . . Flight . | . . . . . . Fastest Speed 50 | 50 50 110 160 160 50 Average Speed 188 | 50 246 125 160 160 159 Slowest Speed 320 | 50 320 240 200 160 160 Overloaded Moves . | . . . . . . Propulsion Burnouts . | . . . . . . Robots Hopped . | . . . . . . Potential Cave-ins 2 | . . . . . 2 Cave-ins Triggered . | . . . . . . Exploration Rate (%) 60 | 3 97 48 72 75 65 Regions Visited 5 Branch Regions 3 Pre-discovered Areas . | . . . . . . Known Exits Taken 1 | . . 1 . . . Unknown Exits Taken 4 | 1 1 . 1 1 . Scrap Searched 2 | . . . . . 2 Spaces Dug 8 | . 8 . . . . Terrain Destroyed 186 | . 21 49 22 . 94 Melee 8 | . 8 . . . . Projectile 6 | . 5 1 . . . AOE 172 | . 8 48 22 . 94 Terrain Rammed . | . . . . . . Walls Destroyed . | . . . . . . Machines Disabled . | . . . . . . Actions | -11 -10 -9 -9 -9 -9 --------- Run | Yrd Mat Mat Sto Rec Scr Total 4147 | 52 1586 588 624 326 971 Wait 644 | . 238 132 167 21 86 Move 3098 | 42 1214 350 364 288 840 Hop . | . . . . . . Pick Up 55 | 6 26 12 6 . 5 Fast Attach 9 | . 3 4 1 . 1 Attach 21 | 4 6 4 1 . 6 Detach 1 | . . . . 1 . Swap 50 | . 13 12 16 5 4 Drop 44 | . 5 13 13 5 8 Fire 203 | . 67 61 49 6 20 Melee 18 | . 12 . 6 . . Ram . | . . . . . . Kick . | . . . . . . Crush 3 | . 2 . 1 . . Escape Stasis . | . . . . . . Rewire . | . . . . . . Trap 1 | . . . . . 1 Miscellaneous . | . . . . . . Route ------- -11/Scrapyard -10/Materials (discovered 5 exits: *Mat x3 / [*Min] / [*Sub]) -9/Materials (discovered 3 exits: *Min / *Sto x2) -9/Storage (discovered 2 exits: [*Mat] / *Rec) -9/Recycling (discovered 2 exits: [*Fac] / [*Scr]) -9/Scraptown History --------- Turn | Location | Event 5 | -11/Scrapyard | Discovered new exit (range 15) 33 | -11/Scrapyard | Entered Materials 224 | -10/Materials | Discovered new exit (range 14) 309 | -10/Materials | Build established: Mutant 351 | -10/Materials | Discovered new exit (range 10) 768 | -10/Materials | Discovered new exit (range 16) 1190 | -10/Materials | Repaired Lgt. Treads 1223 | -10/Materials | Repaired Imp. Light Cannon 2320 | -10/Materials | Discovered new exit (range 11) 3512 | -10/Materials | Discovered new exit (range 7) 3526 | -10/Materials | Prayed at D.C.S.S. Altar Unit 3541 | -10/Materials | Entered another Materials area 3541 | -9/Materials | Evolved 2 slots: Propulsion x1, Utility x1 3673 | -9/Materials | X0-1V1 added 0b10 threat records associated with you (minor) 3727 | -9/Materials | Propulsion slot count permanently improved by X0-1V1 (+1) 3757 | -9/Materials | X0-1V1 announced a LAN party 4023 | -9/Materials | Discovered new exit (range 6) 4044 | -9/Materials | X0-1V1 sent hostile G-34 Mercenary (x3) 4116 | -9/Materials | X0-1V1 upgraded hostiles (x1) 4173 | -9/Materials | Repaired Lgt. Treads+ 4219 | -9/Materials | Identified exit to Mines 4219 | -9/Materials | Identified exit to Storage 4319 | -9/Materials | Entered Storage 4367 | -9/Storage | X0-1V1 sent hostile S-10 Pest (x4) 4453 | -9/Storage | Garrison activated, responded to threat 4765 | -9/Storage | Core integrity fell below 50% 4804 | -9/Storage | Discovered new exit (range 15) 4838 | -9/Storage | X0-1V1 sent you into danger 4986 | -9/Storage | Assisted by bots powering up and referring to "LRC-V3" 5198 | -9/Storage | Used back door to open Recycling access 5198 | -9/Storage | Discovered new exit (range 4) 5244 | -9/Storage | Entered Recycling 5244 | -9/Recycling | Accompanied by 4 allies 5546 | -9/Recycling | Build established: Scavenger-Mutant 5643 | -9/Recycling | Discovered new exit (range 8) 5691 | -9/Recycling | Scanned before Scraplab entrance 5716 | -9/Recycling | Entered Scraplab 5729 | -9/Recycling | Discovered new exit (range 3) 5750 | -9/Recycling | Entered Scraptown 5750 | -9/Scraptown | Accompanied by 4 allies 5750 | -9/Scraptown | System corruption cleaned by C-Scrubber 5762 | -9/Scraptown | System corruption cleaned by C-Scrubber 6280 | -9/Scraptown | Visited UFD Registry 6280 | -9/Scraptown | Registered with UFD as "Chainguard" 6399 | -9/Scraptown | Visited Curators Association 6486 | -9/Scraptown | Visited Research Penetration Think Tank 6519 | -9/Scraptown | Visited Infowarlord's Domain 6533 | -9/Scraptown | Found Exp. Sensor Array 6564 | -9/Scraptown | Visited Observation Area 6590 | -9/Scraptown | Visited Science Guys 6612 | -9/Scraptown | Visited Junk Cannon Lab 6646 | -9/Scraptown | Visited Chapter 10 6822 | -9/Scraptown | Warned about trapping Scraptown 7115 | -9/Scraptown | Visited Shadow of the Wyrm 7135 | -9/Scraptown | X0-1V1 brought Wyrm Statue to life 7135 | -9/Scraptown | Attacked by Scraptown defenders 7137 | -9/Scraptown | Attached CPS modules to Chaos Wyrm 7212 | -9/Scraptown | Core integrity fell below 20% 7217 | -9/Scraptown | Lost 4 parts (2u2w) 7254 | -9/Scraptown | Released all parts (8) 7255 | -9/Scraptown | Destroyed by Triborg with Siege Cannon Last Messages --------------- 07250_ The unstable cave ceiling collapses. 07251_ Siege Slug penetrates Chaos Wyrm. 07251_ CPS modules swiftly deploy to protect Chaos Wyrm components. 07251_ Chaos Wyrm destroyed. 07252_ Dropped Exp. Sensor Array. 07253_ Dropped Lgt. Treads+. 07253_ Med. Armor Plating destroyed. 07253_ Rocket Launcher destroyed. 07253_ Critical hit (Blast). 07254_ Released Rocket Launcher. 07254_ Released Med. Armor Plating. 07254_ Released Lgt. Treads+. 07254_ Released Hcp. Storage Unit. 07254_ Released Cld. Ion Engine. 07254_ Released Lgt. Treads+. 07254_ Acquired Exp. Sensor Array. 07255_ The unstable cave ceiling collapses. 07255_ Penetrated by Siege Slug. 07255_ X0-1V1 bursts into laughter! Map ----- +----------------------------------------------------+ | ?????????????????????# #??? """ ???????????????? | | ????????????????????## ##?" ???????????????? | | ????????? """######## ##"""""" ""#???????????? | | ???????? % ??????????? | | ???????? !! ??????????? | | ???????? [ %! ??????????? | | ???????????######## = #########?????????????? | | ????????? ????????? = #?????????????????????? | | ????????? ??????##??# #######???????????????? | | ????????? ?????? ? ! = """"""""#???????????????? | | ????????? ?????### ## " ""#???????????????? | | ????????? ?????#"" " "#???????????????? | | ????????? ?????#" ""#???????????????? | | ???????## ##???#" """"""#???????????????? | | ?????"""" """"?#" = [# ""####???????????????? | | ????? " " ?#" ! # # ########??????????? | | ??????" "??#" ! ! # #??????????? | | ??????? " " ???#"" [* # ##??????????? | | ????????" "????#### # ## = #??????????? | | ????????# #???????## # #### % = #??????????? | | ######### ########## # % % #??????????= | | =% ## = #????????? = | | = =### #????????? " | | ##################### *!*[= * "#???????" | | ???????????????????## ==%=## =% "#??????? | | ####???????????????#;*%=%@####! # ########## ## | | """#???????????????# [][!= =! | | "#???????????????# [![!!/=%*%*] | | ! "#???????????????# =[%!=%!%]]=*= | | ! "#?????????? =!!=/!%!]=! = | | [ "#?????????"" # = = !!!!] ! | | "#?????????""" # =%! # # ## #### | | ! "#??????????""" ?# &# ##??? ??# | | "#??????????"" ?# # """"""??????# | | "#??????????? ??# #= """ """??????# | | ""#?????????? ???# [!!""" ????????# | | ###??????????#????#![ #%!"????????????# | | ###???????????????#%! #=* ????????????# | | ""#???????????????#=! # ????????????# | | "#???????????????# # ????????????# | | "#????????????##?# #? ?????????????# | | "#???????????? # #???????????????# | | "#????????????? # #???????????????# | | ""#?????????????? #???????????????# | | """#???????????????# #???????????????# | | """#???????????????# #???????????????# | | """????????????????# #???????????????# ^ | | ##?????????????????# ################# | | ####???????????????# | | X""#???????????????# | +----------------------------------------------------+ Best States ------------- Heat Dissipation 28 Energy Generation 14 Energy Capacity 280 Matter Stores 300 Matter Capacity 300 Sight Range 16 Terrain Scan Density 10 Armor Coverage 450 Evasion (%) 50 Targeting Accuracy 6 Recoil Reduction 4 Item Schematics ----------------- None Robot Schematics ------------------ None Fabricated ------------ Nothing Repaired ---------- Lgt. Treads | 12% | -10/Materials Imp. Light Cannon | 14% | -10/Materials Lgt. Treads | 7% | -9/Materials Studied --------- Lgt. Treads | -9/Materials | Hacked Autogun | -9/Materials | Hacked Alien Tech Used ----------------- None Achievements -------------- None Challenges ------------ None Game ------ Seed TargetCatalystMultitool Manual? 0 Play Time 00:52:51 Cumulative 154.0 hours Start 2026.07.20 @ 15:46:53 End 2026.07.20 @ 17:26:10 Sessions 1 Manual Loads 0 Difficulty Rogue Special Mode None Game No. 111 Rogue 111 Adventurer 0 Explorer 0 Win Type - Total 3 Types 2/0/0/1/0/0/0/0/0/0 Lore% 51 Gallery% 59 Achievement% 54 Wizard Run 0 Options --------- Layout 2 ASCII 0 Keyboard 0 Movement Mouse Keybinds 0 Fullscreen 1 Font 48/Smallcaps Map View 50x44 Zoom Use 0% Tactical HUD 1 Map Filters NONE Filters NONE Steam 1 RUN: 7ff0d8e0-ecb5-47de-a8fe-e8281630a4a0